[Event "44th BAN-ch OMICON 2018"]
[Site "Dhaka"]
[Date "2018.11.25"]
[Round "2"]
[White "Ahmed, Sk. Nasir"]
[Black "Chatterjee, Debaraj"]
[Result "1/2-1/2"]
[ECO "B81"]
[WhiteElo "2119"]
[BlackElo "2277"]
[Annotator "NA"]
[PlyCount "223"]
[EventDate "2018.11.24"]
[EventType "swiss"]
[EventCountry "BAN"]
[SourceTitle "playchess.com"]
[Source "ChessBase"]
[SourceQuality "1"]
[TimeControl "40/5400+30:1800+30"]

1. e4 {[%emt 0:00:00]} c5 {[%emt 0:01:59]} 2. Nf3 {[%emt 0:00:00]} d6 {[%emt 0:00:18]} 3. d4 {[%emt 0:00:00]} cxd4 {[%emt 0:00:08]} 4. Nxd4 {[%emt 0:00:00]} Nf6 {[%emt 0:00:12]} 5. Nc3 {[%emt 0:00:03]} a6 {[%emt 0:00:05]} 6. h3 {[%emt 0:00:38]} e6 {[%emt 0:01:37]} 7. g4 {[%emt 0:00:59]} Be7 {[%emt 0:01:32]} 8. Bg2 {[%emt 0:00:26]} Nfd7 $11 {[%emt 0:00:17] LiveBook: 225 Games} 9. Be3 {[%emt 0:19:52]} Nc6 {[%emt 0:00:32]} 10. Qe2 {[%emt 0:01:01]} O-O {[%emt 0:12:30]} 11. O-O {[%emt 0:08:15]} Rb8 {[%emt 0:14:09]} 12. a4 {[%emt 0:06:51]} Qc7 {[%emt 0:08:49]} 13. Rad1 {[%emt 0:00:47]} Nde5 {[%emt 0:11:10]} 14. f4 {[%emt 0:22:56]} Nxd4 {[%emt 0:00:20]} 15. Rxd4 {[%emt 0:01:37]} Nc6 {[%emt 0:00:50]} 16. Rdd1 {[%emt 0:00:31]} Bd7 {[%emt 0:03:20]} 17. g5 {[%emt 0:02:49]} Rfe8 {[%emt 0:09:58]} 18. Rf3 {[%emt 0:05:45]} Bf8 {[%emt 0:06:16]} 19. Kh1 {[%emt 0:01:13]} Na5 {[%emt 0:02:17]} 20. Bc1 {[%emt 0:10:38]} b5 {[%emt 0:01:35]} 21. b3 {[%emt 0:01:41]} Rbc8 {[%emt 0:11:00]} 22. axb5 {[%emt 0:02:02]} axb5 {[%emt 0:00:02]} 23. Ba3 {[%emt 0:01:27]} Qb8 {[%emt 0:04:56]} 24. Bb2 {[%emt 0:00:40]} Bc6 {[%emt 0:01:14]} 25. Rf2 {[%emt 0:02:16]} Qb7 {[%emt 0:01:35]} 26. Qd3 {[%emt 0:01:34]} Qb6 {[%emt 0:02:37]} 27. Qg3 {[%emt 0:02:43]} Nb7 {[%emt 0:00:27]} 28. b4 {[%emt 0:02:08]} Rcd8 {[%emt 0:01:57]} 29. Ne2 {[%emt 0:01:34]} d5 {[%emt 0:00:43]} 30. Bd4 {[%emt 0:02:27]} Qc7 {[%emt 0:00:14]} 31. exd5 {[%emt 0:01:33]} Bxd5 {[%emt 0:00:09]} 32. c3 {[%emt 0:00:16]} Nd6 {[%emt 0:02:04]} 33. Bxd5 {[%emt 0:00:54]} exd5 {[%emt 0:00:02]} 34. Qd3 {[%emt 0:00:21]} Ne4 {[%emt 0:00:11]} 35. Rg2 {[%emt 0:00:15]} Qc4 {[%emt 0:00:39]} 36. Qxc4 {[%emt 0:00:40]} dxc4 {[%emt 0:00:05]} 37. Ra1 {[%emt 0:00:31]} Ra8 {[%emt 0:00:19]} 38. Rgg1 {[%emt 0:00:35]} Rxa1 {[%emt 0:01:04]} 39. Rxa1 {[%emt 0:00:02]} Nd2 {[%emt 0:00:08]} 40. Ng1 {[%emt 0:00:00]} Nb3 {[%emt 0:00:00]} 41. Rd1 {[%emt 0:05:26]} Nxd4 {[%emt 0:03:53]} 42. Rxd4 {[%emt 0:00:02]} Re3 {[%emt 0:00:15]} 43. Rd5 {[%emt 0:00:19]} Rxc3 {[%emt 0:00:16]} 44. Rxb5 {[%emt 0:00:02]} Rb3 {[%emt 0:02:47]} 45. Rb8 {[%emt 0:00:03]} Rxb4 {[%emt 0:03:33]} 46. Rc8 {[%emt 0:00:16]} g6 {[%emt 0:00:41]} 47. Nf3 {[%emt 0:03:45]} Kg7 {[%emt 0:00:49]} 48. Rc6 {[%emt 0:04:22]} Rb1+ {[%emt 0:19:32]} 49. Kg2 {[%emt 0:00:28]} Rc1 {[%emt 0:00:02]} 50. Ne5 {[%emt 0:12:00]} c3 {[%emt 0:00:08]} 51. Rf6 {[%emt 0:00:21]} c2 {[%emt 0:03:59]} 52. Rxf7+ {[%emt 0:00:20]} Kg8 {[%emt 0:00:01]} 53. Rc7 {[%emt 0:00:08]} Bd6 {[%emt 0:00:47]} 54. Rc8+ {[%emt 0:03:06]} Kg7 {[%emt 0:00:01]} 55. h4 {[%emt 0:00:28]} Bb8 {[%emt 0:02:35]} 56. Ng4 {[%emt 0:01:24]} Kf7 {[%emt 0:00:40]} 57. Ne3 {[%emt 0:00:43]} Bxf4 {[%emt 0:00:24]} 58. Nxc2 {[%emt 0:00:26]} Ke7 {[%emt 0:00:22]} 59. Rc4 {[%emt 0:00:48]} Bd6 {[%emt 0:00:33]} 60. Re4+ {[%emt 0:00:49]} Kf7 {[%emt 0:00:18]} 61. Ne3 {[%emt 0:00:29]} Re1 {[%emt 0:00:54]} 62. Kf2 {[%emt 0:00:33]} Rh1 {[%emt 0:00:12]} 63. Ng4 {[%emt 0:00:37]} Rb1 {[%emt 0:00:38]} 64. Nh6+ {[%emt 0:02:28]} Kf8 {[%emt 0:00:13]} 65. Ra4 {[%emt 0:01:56]} Rb4 {[%emt 0:00:27]} 66. Ra8+ {[%emt 0:01:27]} Ke7 {[%emt 0:00:08]} 67. Ra7+ {[%emt 0:00:17]} Ke6 {[%emt 0:00:40]} 68. Rxh7 {[%emt 0:00:21]} Rxh4 {[%emt 0:00:44]} 69. Rg7 {[%emt 0:00:03]} Be7 {[%emt 0:00:43]} 70. Rxg6+ {[%emt 0:00:24]} Kd5 {[%emt 0:00:34]} 71. Kf3 {[%emt 0:00:44]} Rh1 {[%emt 0:00:46]} 72. Rg8 {[%emt 0:01:03]} Bxg5 {[%emt 0:00:17]} 73. Rxg5+ {[%emt 0:00:07]} Kc6 {[%emt 0:00:16]} 74. Nf5 {[%emt 0:00:15]} Re1 {[%emt 0:00:22]} 75. Ne3 {[%emt 0:00:04]} Kd6 {[%emt 0:00:40]} 76. Ke4 {[%emt 0:00:03]} Ke6 {[%emt 0:00:36]} 77. Rg6+ {[%emt 0:00:07]} Kf7 {[%emt 0:00:23]} 78. Ra6 {[%emt 0:00:09]} Ke7 {[%emt 0:00:18]} 79. Kd4 {[%emt 0:00:12]} Kf7 {[%emt 0:00:08]} 80. Nf5 {[%emt 0:00:50]} Re2 {[%emt 0:01:12]} 81. Ng3 {[%emt 0:00:17]} Re1 {[%emt 0:00:26]} 82. Ne4 {[%emt 0:00:10]} Ke7 {[%emt 0:00:23]} 83. Kd5 {[%emt 0:00:08]} Kf7 {[%emt 0:00:25]} 84. Ke5 {[%emt 0:00:14]} Re2 {[%emt 0:00:20]} 85. Kf5 {[%emt 0:00:19]} Ke7 {[%emt 0:00:29]} 86. Ra7+ {[%emt 0:00:03]} Kd8 {[%emt 0:00:19]} 87. Ke5 {[%emt 0:00:49]} Re1 {[%emt 0:00:21]} 88. Kd6 {[%emt 0:00:48]} Rd1+ {[%emt 0:00:45]} 89. Kc6 {[%emt 0:00:15]} Rc1+ {[%emt 0:00:28]} 90. Nc5 {[%emt 0:00:04]} Ke8 {[%emt 0:00:25]} 91. Rh7 {[%emt 0:01:00]} Rc2 {[%emt 0:00:23]} 92. Kd6 {[%emt 0:00:35]} Rd2+ {[%emt 0:00:14]} 93. Ke5 {[%emt 0:00:14]} Re2+ {[%emt 0:00:54]} 94. Ne4 {[%emt 0:00:15]} Re1 {[%emt 0:00:17]} 95. Kd5 {[%emt 0:00:18]} Kd8 {[%emt 0:00:52]} 96. Nf6 {[%emt 0:00:27]} Rd1+ {[%emt 0:00:56]} 97. Kc6 {[%emt 0:00:12]} Rc1+ {[%emt 0:00:17]} 98. Kd6 {[%emt 0:00:04]} Rd1+ {[%emt 0:00:07]} 99. Nd5 {[%emt 0:00:06]} Ke8 {[%emt 0:00:14]} 100. Ra7 {[%emt 0:00:35]} Kf8 {[%emt 0:00:17]} 101. Ra3 {[%emt 0:01:27]} Kf7 {[%emt 0:00:39]} 102. Rg3 {[%emt 0:00:04]} Rd2 {[%emt 0:01:06]} 103. Rf3+ {[%emt 0:00:32]} Kg6 {[%emt 0:00:16]} 104. Ke5 {[%emt 0:00:20]} Re2+ {[%emt 0:00:15]} 105. Ne3 {[%emt 0:00:03]} Re1 {[%emt 0:00:18]} 106. Ke6 {[%emt 0:00:45]} Kg5 {[%emt 0:00:25]} 107. Kf7 {[%emt 0:00:28]} Ra1 {[%emt 0:01:25]} 108. Rf5+ {[%emt 0:00:21]} Kh4 {[%emt 0:00:07]} 109. Kf6 {[%emt 0:00:33]} Ra6+ {[%emt 0:00:50]} 110. Ke5 {[%emt 0:00:02]} Ra5+ {[%emt 0:00:15]} 111. Nd5 {[%emt 0:00:11]} Kg4 {[%emt 0:00:18]} 112. Rf8 {[%emt 0:08:56]} 1/2-1/2

[Event "44th BAN-ch OMICON 2018"]
[Site "Dhaka"]
[Date "2018.11.25"]
[Round "2"]
[White "Nayem, Haque"]
[Black "Md. Sharif Hossain"]
[Result "1/2-1/2"]
[ECO "D02"]
[WhiteElo "2074"]
[BlackElo "2198"]
[Annotator "NA"]
[PlyCount "142"]
[EventDate "2018.11.24"]
[EventType "swiss"]
[EventCountry "BAN"]
[SourceTitle "playchess.com"]
[Source "ChessBase"]
[SourceQuality "1"]
[TimeControl "40/5400+30:1800+30"]

1. d4 {[%emt 0:00:05]} d5 {[%emt 0:00:00]} 2. Bf4 {[%emt 0:00:09]} c5 {[%emt 0:00:38]} 3. c3 {[%emt 0:01:29]} Nc6 {[%emt 0:00:16]} 4. e3 {[%emt 0:00:22]} Nf6 {[%emt 0:01:54] LiveBook: 1124 Games} 5. Nf3 $11 {[%emt 0:02:33]} e6 {[%emt 0:04:48]} 6. Nbd2 {[%emt 0:04:26]} Be7 {[%emt 0:00:55]} 7. Ne5 {[%emt 0:01:38]} O-O {[%emt 0:01:11]} 8. Be2 {[%emt 0:00:52]} Nxe5 {[%emt 0:05:29]} 9. Bxe5 {[%emt 0:02:22]} Bd7 {[%emt 0:01:16]} 10. O-O {[%emt 0:00:53]} Bc6 {[%emt 0:00:47]} 11. Bd3 {[%emt 0:04:43]} Bd6 {[%emt 0:08:35]} 12. f4 {[%emt 0:45:07]} Ne4 {[%emt 0:03:51]} 13. Bxd6 {[%emt 0:01:26]} Qxd6 {[%emt 0:01:25]} 14. f5 {[%emt 0:06:09]} exf5 {[%emt 0:03:03]} 15. Rxf5 {[%emt 0:01:03]} g6 {[%emt 0:00:17]} 16. Rf1 {[%emt 0:14:27]} Nxd2 {[%emt 0:02:55]} 17. Qxd2 {[%emt 0:00:03]} Rae8 {[%emt 0:00:19]} 18. Rf3 {[%emt 0:00:05]} f5 {[%emt 0:01:36]} 19. Raf1 {[%emt 0:00:25]} Bd7 {[%emt 0:04:43]} 20. Bc2 {[%emt 0:06:33]} Bb5 {[%emt 0:01:28]} 21. Bd3 {[%emt 0:01:41]} Bxd3 {[%emt 0:00:32]} 22. Qxd3 {[%emt 0:00:02]} c4 {[%emt 0:00:29]} 23. Qd2 {[%emt 0:00:14]} Re4 {[%emt 0:00:12]} 24. Rf4 {[%emt 0:00:29]} Ree8 {[%emt 0:04:17]} 25. Qf2 {[%emt 0:01:01]} Qe6 {[%emt 0:00:51]} 26. g4 {[%emt 0:00:46]} Qxe3 {[%emt 0:08:36]} 27. gxf5 {[%emt 0:00:56]} Qxf2+ {[%emt 0:10:53]} 28. R1xf2 {[%emt 0:00:19]} Re1+ {[%emt 0:01:32]} 29. Kg2 {[%emt 0:00:17]} Rb1 {[%emt 0:00:15]} 30. f6 {[%emt 0:02:23]} Kf7 {[%emt 0:02:29]} 31. R4f3 {[%emt 0:00:36]} Re8 {[%emt 0:00:24]} 32. Rh3 {[%emt 0:00:25]} h5 {[%emt 0:00:10]} 33. Rg3 {[%emt 0:00:13]} Ree1 {[%emt 0:03:58]} 34. Kh3 {[%emt 0:01:21]} Rg1 {[%emt 0:03:18]} 35. Re3 {[%emt 0:00:42]} Rbe1 {[%emt 0:00:35]} 36. Rxe1 {[%emt 0:00:58]} Rxe1 {[%emt 0:00:02]} 37. Kh4 {[%emt 0:00:38]} Re4+ {[%emt 0:01:30]} 38. Kg5 {[%emt 0:00:30]} Rg4+ {[%emt 0:00:17]} 39. Kh6 {[%emt 0:00:00]} h4 {[%emt 0:01:34]} 40. Re2 {[%emt 0:00:00]} Kxf6 {[%emt 0:00:00]} 41. Rf2+ {[%emt 0:02:59]} Ke6 {[%emt 0:03:29]} 42. h3 {[%emt 0:03:24]} Rg3 {[%emt 0:00:31]} 43. Kg7 {[%emt 0:00:30]} Rxh3 {[%emt 0:00:56]} 44. Re2+ {[%emt 0:04:45]} Kd6 {[%emt 0:01:08]} 45. Kxg6 {[%emt 0:00:30]} Rg3+ {[%emt 0:00:41]} 46. Kf5 {[%emt 0:00:30]} h3 {[%emt 0:07:47]} 47. Re6+ {[%emt 0:00:30]} Kc7 {[%emt 0:08:02]} 48. Rh6 {[%emt 0:01:10]} Rg2 {[%emt 0:02:08]} 49. Rxh3 {[%emt 0:01:11]} Rxb2 {[%emt 0:01:32]} 50. Ke5 {[%emt 0:00:30]} Kc6 {[%emt 0:02:33]} 51. Rh6+ {[%emt 0:04:30]} Kb5 {[%emt 0:00:30]} 52. Kxd5 {[%emt 0:00:30]} Rxa2 {[%emt 0:00:30]} 53. Rh7 {[%emt 0:00:30]} b6 {[%emt 0:00:30]} 54. Rc7 {[%emt 0:00:30]} Ra4 {[%emt 0:00:45]} 55. Rc8 {[%emt 0:03:06]} a5 {[%emt 0:01:32]} 56. Rc7 {[%emt 0:00:39]} Ra1 {[%emt 0:01:31]} 57. Rxc4 {[%emt 0:00:42]} Rc1 {[%emt 0:00:55]} 58. Rc8 {[%emt 0:01:51]} a4 {[%emt 0:02:32]} 59. c4+ {[%emt 0:05:01]} Ka5 {[%emt 0:00:30]} 60. Ra8+ {[%emt 0:01:23]} Kb4 {[%emt 0:00:30]} 61. Ra6 {[%emt 0:01:01]} Rd1 {[%emt 0:08:45]} 62. Rxb6+ {[%emt 0:00:59]} Kc3 {[%emt 0:00:30]} 63. c5 {[%emt 0:01:34]} Rxd4+ {[%emt 0:00:30]} 64. Kc6 {[%emt 0:00:56]} Rh4 {[%emt 0:05:11]} 65. Rb1 {[%emt 0:02:01]} a3 {[%emt 0:00:30]} 66. Kd7 {[%emt 0:00:31]} Rd4+ {[%emt 0:01:43]} 67. Ke6 {[%emt 0:00:37]} Kc2 {[%emt 0:01:17]} 68. Ra1 {[%emt 0:00:40]} Kb2 {[%emt 0:00:30]} 69. Rxa3 {[%emt 0:00:39]} Kxa3 {[%emt 0:00:30]} 70. c6 {[%emt 0:00:30]} Rc4 {[%emt 0:01:11]} 71. Kd7 {[%emt 0:00:30]} Rd4+ {[%emt 0:00:30]} 1/2-1/2

[Event "44th BAN-ch OMICON 2018"]
[Site "Dhaka"]
[Date "2018.11.25"]
[Round "2"]
[White "Md, Sariatullah"]
[Black "Mohammad, Javed"]
[Result "0-1"]
[ECO "C50"]
[WhiteElo "2027"]
[BlackElo "2135"]
[Annotator "NA"]
[PlyCount "54"]
[EventDate "2018.11.24"]
[EventType "swiss"]
[EventCountry "BAN"]
[SourceTitle "playchess.com"]
[Source "ChessBase"]
[SourceQuality "1"]
[TimeControl "40/5400+30:1800+30"]

1. e4 {[%emt 1:30:30]} e5 {[%emt 1:30:30]} 2. Nf3 {[%emt 0:00:30]} Nc6 {[%emt 0:00:30]} 3. Bc4 {[%emt 0:00:30]} Bc5 {[%emt 0:00:30]} 4. O-O {[%emt 0:00:30]} Nf6 {[%emt 0:00:30]} 5. d4 {[%emt 0:00:30]} Bxd4 {[%emt 0:00:30]} 6. Nxd4 {[%emt 0:00:30]} Nxd4 {[%emt 0:00:30]} 7. f4 {[%emt 0:00:30]} d6 {[%emt 0:00:30]} 8. fxe5 {[%emt 0:00:30]} dxe5 {[%emt 0:00:30]} 9. Bg5 {[%emt 0:00:30]} Be6 {[%emt 0:00:30]} 10. Na3 {[%emt 0:00:30]} Qe7 {[%emt 0:00:30]} 11. Bxf6 {[%emt 0:00:30]} gxf6 {[%emt 0:00:30]} 12. c3 {[%emt 0:00:30]} Bxc4 {[%emt 0:00:30]} 13. Nxc4 {[%emt 0:00:30]} Ne6 {[%emt 0:00:30]} 14. Kh1 {[%emt 0:00:30]} Qc5 {[%emt 0:00:30]} 15. Na3 {[%emt 0:00:30]} Rg8 {[%emt 0:00:30]} 16. g3 {[%emt 0:00:30]} Ng5 {[%emt 0:00:30]} 17. Qa4+ {[%emt 0:00:30]} c6 {[%emt 0:00:30]} 18. Rad1 {[%emt 0:00:30]} Rd8 {[%emt 0:00:30]} 19. Rxd8+ {[%emt 0:00:30]} Kxd8 {[%emt 0:00:30]} 20. Rxf6 {[%emt 0:00:30]} Kc8 {[%emt 0:00:30]} 21. h4 {[%emt 0:00:30]} Nh3 {[%emt 0:00:30]} 22. Rf1 {[%emt 0:00:30]} Rxg3 {[%emt 0:00:30]} 23. Kh2 {[%emt 0:00:30]} Rg8 {[%emt 0:00:30]} 24. Qd1 {[%emt 0:00:30]} Nf4 {[%emt 0:00:30]} 25. Qf3 {[%emt 0:00:30]} Qe7 {[%emt 0:00:30]} 26. Qf2 {[%emt 0:00:30]} Rg2+ {[%emt 0:00:30]} 27. Qxg2 {[%emt 0:00:30]} Qxh4+ {[%emt 0:00:30]} 0-1

[Event "44th BAN-ch OMICON 2018"]
[Site "Dhaka"]
[Date "2018.11.25"]
[Round "2"]
[White "Md. Jamal Uddin"]
[Black "Rahman, Taibur"]
[Result "1/2-1/2"]
[ECO "A30"]
[WhiteElo "1950"]
[BlackElo "2239"]
[Annotator "NA"]
[PlyCount "127"]
[EventDate "2018.11.24"]
[EventType "swiss"]
[EventCountry "BAN"]
[SourceTitle "playchess.com"]
[Source "ChessBase"]
[SourceQuality "1"]
[TimeControl "40/5400+30:1800+30"]

1. Nf3 {[%emt 0:00:00]} Nf6 {[%emt 0:21:35]} 2. b3 {[%emt 0:01:57]} b6 {[%emt 0:00:32]} 3. Bb2 {[%emt 0:00:28]} Bb7 {[%emt 0:00:05]} 4. e3 {[%emt 0:00:55]} e6 {[%emt 0:00:22]} 5. c4 {[%emt 0:00:50]} Be7 {[%emt 0:00:28]} 6. Be2 {[%emt 0:00:34]} O-O {[%emt 0:00:06]} 7. d4 {[%emt 0:00:36]} c5 {[%emt 0:01:02]} 8. O-O {[%emt 0:00:33]} cxd4 {[%emt 0:00:22]} 9. Nxd4 {[%emt 0:03:09]} d5 {[%emt 0:03:28]} 10. Bf3 {[%emt 0:01:17]} Nbd7 {[%emt 0:13:05]} 11. g3 {[%emt 0:05:40]} Rc8 {[%emt 0:02:23]} 12. Nd2 {[%emt 0:08:27]} Ba6 {[%emt 0:09:24]} 13. Be2 {[%emt 0:01:43]} Nc5 {[%emt 0:09:27]} 14. Rc1 {[%emt 0:06:56]} Nce4 {[%emt 0:01:05]} 15. Nxe4 {[%emt 0:01:27]} Nxe4 {[%emt 0:00:31]} 16. cxd5 {[%emt 0:03:14]} Rxc1 {[%emt 0:02:15]} 17. Qxc1 {[%emt 0:05:26]} Bxe2 {[%emt 0:01:37]} 18. Nxe2 {[%emt 0:00:44]} Qxd5 {[%emt 0:00:20]} 19. Nc3 {[%emt 0:03:32]} Nxc3 {[%emt 0:01:22]} 20. Bxc3 {[%emt 0:00:20]} Rc8 {[%emt 0:00:33]} 21. Qb2 {[%emt 0:00:44]} f6 {[%emt 0:03:59]} 22. Rc1 {[%emt 0:04:12]} Kf7 {[%emt 0:07:06]} 23. Be1 {[%emt 0:04:48]} Rd8 {[%emt 0:05:57]} 24. b4 {[%emt 0:01:24]} Rd7 {[%emt 0:01:02]} 25. Qc2 {[%emt 0:02:22]} f5 {[%emt 0:01:32]} 26. a4 {[%emt 0:01:32]} Qf3 {[%emt 0:01:05]} 27. a5 {[%emt 0:06:14]} h5 {[%emt 0:01:44]} 28. b5 {[%emt 0:03:46]} h4 {[%emt 0:05:47]} 29. axb6 {[%emt 0:05:30]} hxg3 {[%emt 0:03:02]} 30. hxg3 {[%emt 0:00:37]} axb6 {[%emt 0:00:13]} 31. Qc6 {[%emt 0:00:39]} Qxc6 {[%emt 0:00:20]} 32. bxc6 {[%emt 0:00:58]} Rc7 {[%emt 0:00:05]} 33. Kf1 {[%emt 0:01:50]} Bc5 {[%emt 0:00:05]} 34. Rd1 {[%emt 0:08:23]} Ke7 {[%emt 0:01:47]} 35. Bc3 {[%emt 0:01:36]} g5 {[%emt 0:01:44]} 36. Be5 {[%emt 0:02:12]} Rxc6 {[%emt 0:00:06]} 37. Ra1 {[%emt 0:00:22]} Bd6 {[%emt 0:00:48]} 38. Ra7+ {[%emt 0:00:15]} Ke8 {[%emt 0:00:20]} 39. Bxd6 {[%emt 0:08:24]} Rxd6 {[%emt 0:00:01]} 40. f3 {[%emt 0:00:24]} Rd7 {[%emt 0:00:00]} 41. Ra8+ {[%emt 0:00:08]} Kf7 {[%emt 0:02:40]} 42. Ke2 {[%emt 0:03:12]} Rd5 {[%emt 0:04:07]} 43. Rb8 {[%emt 0:01:18]} Rb5 {[%emt 0:00:06]} 44. Kd3 {[%emt 0:01:10]} Kf6 {[%emt 0:00:57]} 45. Rf8+ {[%emt 0:02:13]} Kg7 {[%emt 0:02:02]} 46. Rb8 {[%emt 0:00:18]} Kf7 {[%emt 0:03:16]} 47. Kc4 {[%emt 0:05:05]} Rb1 {[%emt 0:01:27]} 48. Kd4 {[%emt 0:00:40]} Rd1+ {[%emt 0:00:10]} 49. Kc3 {[%emt 0:01:57]} Rf1 {[%emt 0:10:01]} 50. f4 {[%emt 0:02:06]} Rf3 {[%emt 0:01:05]} 51. Kd4 {[%emt 0:00:40]} Rxg3 {[%emt 0:02:42]} 52. fxg5 {[%emt 0:01:09]} Rg4+ {[%emt 0:00:10]} 53. Kd3 {[%emt 0:00:41]} Rb4 {[%emt 0:04:38]} 54. Ke2 {[%emt 0:02:05]} e5 {[%emt 0:02:48]} 55. Kf3 {[%emt 0:00:42]} Rb3 {[%emt 0:00:14]} 56. Ke2 {[%emt 0:04:08]} b5 {[%emt 0:00:35]} 57. Rb6 {[%emt 0:00:24]} Rb2+ {[%emt 0:01:14]} 58. Kf3 {[%emt 0:00:13]} Kg7 {[%emt 0:01:00]} 59. Rf6 {[%emt 0:01:08]} e4+ {[%emt 0:00:24]} 60. Kg3 {[%emt 0:00:56]} Re2 {[%emt 0:02:08]} 61. Rxf5 {[%emt 0:00:31]} Rxe3+ {[%emt 0:00:10]} 62. Kf4 {[%emt 0:01:12]} Rf3+ {[%emt 0:00:57]} 63. Kxe4 {[%emt 0:00:02]} Rxf5 {[%emt 0:00:05]} 64. Kxf5 {[%emt 0:00:14]} 1/2-1/2

[Event "44th BAN-ch OMICON 2018"]
[Site "Dhaka"]
[Date "2018.11.25"]
[Round "2"]
[White "Zia, Tahsin Tajwar"]
[Black "Rahman, Syed Mahfuzur"]
[Result "1-0"]
[ECO "D02"]
[WhiteElo "1803"]
[BlackElo "2224"]
[Annotator "NA"]
[PlyCount "129"]
[EventDate "2018.11.24"]
[EventType "swiss"]
[EventCountry "BAN"]
[SourceTitle "playchess.com"]
[Source "ChessBase"]
[SourceQuality "1"]
[TimeControl "40/5400+30:1800+30"]

1. Nf3 {[%emt 0:00:00]} d5 {[%emt 0:05:56]} 2. d4 {[%emt 0:00:07]} Nf6 {[%emt 0:01:59]} 3. Bf4 {[%emt 0:00:09]} e6 {[%emt 0:00:17]} 4. e3 {[%emt 0:00:07]} Bd6 {[%emt 0:00:13]} 5. Bg3 {[%emt 0:00:07]} c5 {[%emt 0:00:25]} 6. Nbd2 $11 {[%emt 0:00:11] LiveBook: 32 Games} Nc6 {[%emt 0:01:35]} 7. c3 {[%emt 0:00:07]} O-O {[%emt 0:05:46]} 8. Bd3 {[%emt 0:00:09]} b6 {[%emt 0:01:40]} 9. Qe2 {[%emt 0:00:59]} Bb7 {[%emt 0:06:08]} 10. Rd1 {[%emt 0:00:12]} cxd4 {[%emt 0:14:25]} 11. exd4 {[%emt 0:00:29]} Ne7 {[%emt 0:01:44]} 12. Bxd6 {[%emt 0:02:02]} Qxd6 {[%emt 0:00:09]} 13. Ne5 {[%emt 0:00:18]} Ne8 {[%emt 0:10:57]} 14. O-O {[%emt 0:06:02]} f6 {[%emt 0:02:18]} 15. f4 {[%emt 0:05:56]} Nc7 {[%emt 0:13:21]} 16. Qh5 {[%emt 0:04:13]} f5 {[%emt 0:08:15]} 17. Rf3 {[%emt 0:03:28]} Ne8 {[%emt 0:00:29]} 18. Rg3 {[%emt 0:02:24]} Rc8 {[%emt 0:03:47]} 19. Qg5 {[%emt 0:03:54]} Rc7 {[%emt 0:02:53]} 20. Rf1 {[%emt 0:27:26]} Nc8 {[%emt 0:00:35]} 21. Rh3 {[%emt 0:01:27]} Qe7 {[%emt 0:00:46]} 22. Qh5 {[%emt 0:04:45]} Nf6 {[%emt 0:01:54]} 23. Qh4 {[%emt 0:00:51]} Nd6 {[%emt 0:00:20]} 24. g4 {[%emt 0:00:46]} g6 {[%emt 0:06:12]} 25. g5 {[%emt 0:01:40]} Nh5 {[%emt 0:01:52]} 26. Be2 {[%emt 0:00:55]} Qe8 {[%emt 0:03:17]} 27. Bxh5 {[%emt 0:05:16]} gxh5 {[%emt 0:00:03]} 28. Rf2 {[%emt 0:02:57]} b5 {[%emt 0:04:13]} 29. Rg2 {[%emt 0:01:47]} Rg7 {[%emt 0:01:05]} 30. a3 {[%emt 0:01:40]} Ne4 {[%emt 0:00:40]} 31. Qxh5 {[%emt 0:02:04]} Qxh5 {[%emt 0:00:30]} 32. Rxh5 {[%emt 0:00:03]} a5 {[%emt 0:00:59]} 33. Rh6 {[%emt 0:01:14]} Re8 {[%emt 0:00:14]} 34. Nb3 {[%emt 0:01:09]} a4 {[%emt 0:01:02]} 35. Nc1 {[%emt 0:01:11]} Kf8 {[%emt 0:00:36]} 36. Ncd3 {[%emt 0:00:39]} Ke7 {[%emt 0:00:23]} 37. h4 {[%emt 0:01:14]} Reg8 {[%emt 0:00:52]} 38. h5 {[%emt 0:00:37]} Bc8 {[%emt 0:00:33]} 39. Nc5 {[%emt 0:02:13]} Kd6 {[%emt 0:00:33]} 40. Nxe4+ {[%emt 0:00:00]} dxe4 {[%emt 0:00:00]} 41. g6 {[%emt 0:01:52]} e3 {[%emt 0:11:34]} 42. Rg3 {[%emt 0:03:05]} Kd5 {[%emt 0:11:08]} 43. Rxe3 {[%emt 0:00:33]} hxg6 {[%emt 0:00:10]} 44. hxg6 {[%emt 0:00:24]} Bd7 {[%emt 0:00:46]} 45. Nxd7 {[%emt 0:03:36]} Rxd7 {[%emt 0:00:12]} 46. Re5+ {[%emt 0:00:32]} Kd6 {[%emt 0:00:50]} 47. Rxb5 {[%emt 0:00:23]} Rdg7 {[%emt 0:00:07]} 48. Rb4 {[%emt 0:01:45]} Rxg6+ {[%emt 0:03:41]} 49. Rxg6 {[%emt 0:00:01]} Rxg6+ {[%emt 0:00:03]} 50. Kf2 {[%emt 0:00:10]} Kd5 {[%emt 0:01:33]} 51. Kf3 {[%emt 0:00:23]} Rg1 {[%emt 0:00:09]} 52. Rxa4 {[%emt 0:00:13]} Rf1+ {[%emt 0:00:03]} 53. Ke3 {[%emt 0:00:23]} Re1+ {[%emt 0:00:06]} 54. Kf2 {[%emt 0:00:07]} Rb1 {[%emt 0:01:40]} 55. Rb4 {[%emt 0:00:33]} Ke4 {[%emt 0:00:15]} 56. a4 {[%emt 0:00:32]} Rc1 {[%emt 0:02:07]} 57. a5 {[%emt 0:00:34]} Ra1 {[%emt 0:00:25]} 58. d5+ {[%emt 0:02:27]} Kxd5 {[%emt 0:00:13]} 59. Rd4+ {[%emt 0:00:11]} Kc6 {[%emt 0:00:15]} 60. b4 {[%emt 0:00:12]} Ra3 {[%emt 0:01:11]} 61. Rc4+ {[%emt 0:01:00]} Kd5 {[%emt 0:00:05]} 62. Rd4+ {[%emt 0:00:10]} Kc6 {[%emt 0:00:02]} 63. Rd3 {[%emt 0:00:30]} Ra2+ {[%emt 0:01:23]} 64. Ke3 {[%emt 0:00:28]} Kb5 {[%emt 0:00:13]} 65. Rd2 {[%emt 0:01:59]} 1-0